bitfinex/quotes_ETHUSD_20240910
["timestamp","ask_amount","ask_price","bid_price","bid_amount"]
[1726000063756,9.30628456,2392.7,2392.1,2.0355]
[1726000064153,7.49,2392.7,2392.1,2.0355]
[1726000064684,11.42230223,2392.7,2392.1,2.0355]
[1726000064978,13.85470223,2392.7,2392.1,2.0355]
[1726000065137,0.5763151,2392.6,2392.1,2.0355]
[1726000065555,3.93230223,2392.5,2391.6,0.87125077]
[1726000065765,3.93230223,2392.5,2391.8,2.0355]
[1726000065766,3.55,2392.4,2391.8,2.0355]
[1726000065940,8.11272223,2392.1,2391.3,2.27259634]
[1726000066145,8.11272223,2392.1,2391.1,3.60016748]
[1726000066146,3.93230223,2391.9,2391.4,2.0355]
[1726000066457,0.55,2391.8,2391.4,2.0355]
[1726000068998,3.93230223,2391.7,2391.1,2.0355]
[1726000069158,0.55,2391.6,2391.1,2.0355]
[1726000069357,3.93230223,2391.3,2390.7,0.0263151]
[1726000069692,3.93230223,2390.9,2390.7,0.0263151]
[1726000070065,3.93230223,2391.1,2390.7,0.0263151]
[1726000070261,0.55,2391.0,2390.7,0.0263151]
[1726000070466,6.33160223,2390.9,2390.7,0.0263151]
[1726000070660,3.93230223,2390.9,2390.7,0.0263151]
[1726000070871,3.55,2390.8,2390.7,0.0263151]
[1726000071193,14.3147,2390.8,2390.7,0.0263151]
[1726000071491,18.4974,2390.8,2390.7,0.0263151]
[1726000071662,20.24928225,2390.8,2390.7,0.0263151]
[1726000071998,16.06658225,2390.8,2390.7,0.0263151]
[1726000072288,14.3147,2390.8,2390.7,0.0263151]
[1726000072700,14.54377402,2390.8,2390.7,0.0263151]
[1726000077521,4.1849,2389.6,2388.8,0.0263151]
[1726000077670,3.93230223,2389.4,2388.8,0.0263151]
[1726000078298,6.93230223,2389.4,2388.8,0.0263151]
[1726000078733,7.48230223,2389.4,2388.8,0.0263151]
[1726000079494,3.55,2389.4,2388.8,0.0263151]
[1726000079699,0.55,2389.4,2388.8,0.0263151]
[1726000079998,3.55,2389.4,2388.8,0.0263151]
[1726000080432,3.55,2389.4,2389.0,1.9693]
[1726000080933,7.48230223,2389.4,2388.8,0.0263151]
[1726000081498,3.55,2389.4,2388.8,0.0263151]
[1726000081698,3.55,2389.4,2388.8,0.1100323]
[1726000082731,0.55,2389.4,2388.8,0.1100323]
[1726000082917,3.55,2389.4,2388.8,0.1100323]
[1726000083121,0.55,2389.4,2388.8,0.1100323]
[1726000083713,3.0,2389.5,2389.2,1.9693]
[1726000083913,3.0,2389.7,2389.2,1.9693]
[1726000084119,0.55,2389.6,2389.2,1.9693]
[1726000084746,3.0,2389.7,2389.2,1.9693]
[1726000084910,11.42230223,2390.0,2389.2,1.9693]
[1726000085406,3.93230223,2389.8,2389.2,1.9693]
[1726000085804,3.93230223,2389.6,2389.2,1.9693]
[1726000086044,3.93230223,2389.6,2388.9,1.9693]
[1726000086653,3.55,2389.5,2388.9,1.9693]
[1726000092354,3.0,2389.4,2388.9,1.9693]
[1726000092647,0.55,2389.5,2388.9,1.9693]
[1726000092843,0.55,2389.6,2388.9,1.9693]
[1726000095443,4.48230223,2389.6,2388.9,1.9693]
[1726000095638,3.93230223,2389.4,2388.9,1.9693]
[1726000095866,11.11745223,2389.4,2388.8,0.0263151]
[1726000096156,11.66745223,2389.4,2388.8,0.0263151]
[1726000098294,15.85260223,2389.4,2388.8,0.0263151]
[1726000098441,11.66745223,2389.4,2388.8,0.0263151]
[1726000101207,6.66492,2388.9,2388.8,0.0263151]
[1726000101366,2.4789,2388.9,2388.8,0.0263151]
[1726000101565,11.14722223,2388.9,2388.8,0.0263151]
[1726000101766,7.48230223,2388.9,2388.8,0.0263151]
[1726000101999,3.55,2388.9,2388.8,0.0263151]
[1726000102199,4.48230223,2388.9,2388.8,0.0263151]
[1726000102407,7.48230223,2388.9,2388.8,0.0263151]
[1726000102661,7.48230223,2388.9,2388.5,1.9693]
[1726000102662,3.55,2388.9,2388.7,0.0344963]
[1726000102875,0.55,2388.9,2388.7,0.0344963]
[1726000105418,4.18524,2389.4,2388.7,0.0344963]
[1726000105419,11.42230223,2389.5,2388.8,1.9693]
[1726000105567,3.0,2389.4,2388.8,1.9693]
[1726000105768,7.18515,2389.4,2388.8,1.9693]
[1726000106270,3.93230223,2389.3,2388.8,1.9693]
[1726000106464,3.0,2389.2,2388.8,1.9693]
[1726000106975,0.55,2389.1,2388.8,1.9693]
[1726000108547,0.55,2389.1,2388.7,0.0344963]
[1726000108733,8.11842223,2388.9,2388.7,0.0344963]
[1726000108930,4.48230223,2388.8,2388.7,0.0344963]
[1726000109255,6.93230223,2388.8,2388.7,0.0344963]
[1726000109447,7.48230223,2388.8,2388.7,0.0344963]
[1726000109638,11.66850223,2388.8,2388.7,0.0344963]
[1726000109950,14.14940223,2388.8,2388.7,0.0344963]
[1726000110408,18.33560223,2388.8,2388.7,0.0344963]
[1726000110905,14.14940223,2388.8,2388.7,0.0344963]
[1726000111106,3.55,2388.8,2388.7,0.0344963]
[1726000111328,7.48230223,2388.8,2388.7,0.0344963]
[1726000113570,3.55,2388.8,2388.7,0.0344963]
[1726000114737,11.66850223,2388.8,2388.7,0.0344963]
[1726000114917,7.48230223,2388.8,2388.7,0.0344963]
[1726000116502,3.0,2388.8,2388.7,0.0344963]
[1726000116638,3.0,2389.1,2388.7,0.0344963]
[1726000116842,3.93230223,2389.0,2388.7,0.0344963]
[1726000117039,3.0,2388.9,2388.7,0.0344963]
[1726000117635,3.0,2389.1,2388.7,0.0344963]
[1726000117955,3.93230223,2389.2,2388.7,0.0344963]
[1726000118133,4.18534,2389.3,2388.7,0.0344963]
[1726000118134,3.93230223,2389.0,2388.7,0.0344963]
[1726000118980,0.55,2388.9,2388.7,0.0344963]
[1726000119751,3.93230223,2389.4,2388.8,1.9693]
[1726000121145,3.55,2389.3,2388.8,1.9693]
[1726000121480,0.55,2389.3,2388.8,1.9693]
[1726000122784,0.55,2389.5,2388.8,1.9693]
[1726000123520,0.55,2389.5,2388.8,2.31934388]
[1726000124017,0.55,2389.5,2388.8,2.40306052]
[1726000124186,4.576714,2389.6,2388.8,2.40306052]
[1726000124776,12.69382623,2389.6,2388.8,2.31934388]
[1726000125025,3.93230223,2389.4,2388.8,1.9693]
[1726000125379,0.55,2389.3,2388.8,1.9693]
[1726000127818,6.93230223,2389.6,2389.0,1.9693]
[1726000128114,3.93230223,2389.4,2389.0,1.9693]
[1726000129339,0.55,2389.3,2389.0,1.9693]
[1726000129858,6.93230223,2389.6,2389.0,1.9693]
[1726000129999,0.55,2389.5,2389.0,1.9693]
[1726000130948,0.55,2389.5,2388.8,1.9693]
[1726000131253,0.55,2389.5,2388.8,2.40674525]
[1726000132051,0.55,2389.5,2388.8,1.9693]
[1726000132831,0.55,2389.5,2389.0,1.9693]
[1726000134740,7.49,2389.7,2389.1,0.94428224]
[1726000134937,7.49,2389.7,2389.3,1.9693]
[1726000135143,22.50825399,2390.3,2389.3,1.9693]
[1726000135144,7.49,2390.1,2389.3,1.9693]
[1726000135343,11.42230223,2390.1,2389.3,1.9693]
[1726000135961,11.42230223,2390.1,2389.2,0.08369885]
[1726000135962,11.42230223,2390.3,2389.5,1.9693]
[1726000136170,3.93230223,2390.3,2389.5,2.05299007]
[1726000136464,9.23606685,2390.5,2389.5,2.05299007]
[1726000136465,11.42230223,2390.5,2389.5,2.05299007]
[1726000136978,7.49,2390.5,2389.8,1.9693]
[1726000137122,7.49,2390.5,2390.0,1.9693]
[1726000137327,7.49,2390.9,2390.2,1.9693]
[1726000137652,7.49,2390.9,2390.4,1.9693]
[1726000137827,7.49,2390.9,2390.6,1.9693]
[1726000138031,0.0336941,2391.1,2390.6,1.9693]
[1726000139982,0.0336941,2391.1,2390.7,0.08364795]
[1726000140667,0.0336941,2391.1,2390.6,1.9693]
[1726000143719,0.55,2391.0,2390.6,1.9693]
[1726000145672,0.0336941,2391.1,2390.6,1.9693]
[1726000146278,0.0336941,2391.1,2390.7,0.0836492]
[1726000146483,0.0336941,2391.1,2390.6,1.9693]
[1726000146914,0.0336941,2391.1,2390.7,0.08364918]
[1726000147141,0.0336941,2391.1,2390.8,1.9693]
[1726000151697,0.0336941,2391.1,2390.9,0.08364463]
[1726000152237,0.0336941,2391.1,2390.8,1.9693]
[1726000156439,0.0336941,2391.1,2390.9,0.08364514]
[1726000156642,0.0336941,2391.1,2390.8,1.9693]
[1726000163273,0.0536635,2391.2,2390.8,1.9693]
[1726000166566,0.0536635,2391.2,2390.2,3.0]
[1726000166567,0.0536635,2391.2,2390.9,0.08364481]
[1726000166783,0.0536635,2391.2,2391.0,1.9693]
[1726000166927,0.0536635,2391.2,2391.1,0.08362863]
[1726000167766,7.49,2391.6,2391.1,0.08362863]
[1726000169247,7.49,2391.6,2391.2,1.9693]
[1726000169560,7.49,2391.6,2391.3,0.08362418]
[1726000172954,0.026303,2391.7,2391.3,0.08362418]
[1726000176921,4.18166,2391.4,2390.8,1.9693]
[1726000177197,2.2756,2391.4,2390.9,0.43614682]
[1726000177397,0.55,2391.3,2390.8,1.9693]
[1726000182195,0.55,2391.3,2390.9,0.43647055]
[1726000182402,0.55,2391.3,2390.9,0.24057706]
[1726000183357,2.2756,2391.4,2390.9,0.24057706]
[1726000184063,3.93230223,2391.5,2390.9,0.24057706]
[1726000184404,0.55,2391.4,2390.9,0.24057706]
[1726000189499,0.55,2391.4,2390.9,0.67694262]
[1726000189699,0.55,2391.4,2390.9,0.24057706]
[1726000192292,3.93230223,2391.5,2390.9,0.24057706]
[1726000192609,3.93230223,2391.5,2391.0,0.08364256]
[1726000192776,3.93230223,2391.5,2390.9,0.24057706]
[1726000194209,1.81690421,2391.4,2390.9,0.24057706]
[1726000196305,1.81690421,2391.4,2390.8,1.9693]
[1726000196508,1.81690421,2391.4,2390.7,0.083648]
[1726000196509,0.55,2391.3,2390.7,0.083648]
[1726000197412,1.81690421,2391.4,2390.7,1.49562387]
[1726000197616,1.81690421,2391.4,2390.8,0.94124974]
[1726000197912,1.81690421,2391.4,2390.8,0.52773885]
[1726000198101,8.39637685,2391.6,2390.8,0.52773885]
[1726000198304,2.36690421,2391.5,2390.8,0.52773885]
[1726000201013,1.81690421,2390.9,2390.5,1.41207546]
[1726000201316,1.81690421,2390.9,2390.4,1.41244868]
[1726000201526,0.55,2390.8,2390.4,1.97158054]
[1726000201685,0.55,2390.8,2390.3,2.27943027]
[1726000201892,0.55,2390.8,2390.4,2.34686158]
[1726000202230,1.81690421,2390.7,2390.3,1.408015]
[1726000202455,1.81690421,2390.7,2390.2,1.40832485]
[1726000202730,1.81690421,2390.7,2390.2,1.90577816]
[1726000202881,0.55,2390.8,2390.2,1.82211467]
[1726000203088,1.31689324,2391.1,2390.4,1.9693]
[1726000203331,4.81690421,2391.1,2390.4,1.9693]
[1726000203527,0.55,2391.0,2390.4,1.9693]
[1726000203712,0.55,2391.0,2390.4,2.05295608]
[1726000203911,0.55,2391.0,2390.4,2.57421489]
[1726000204088,4.48835211,2391.0,2390.4,2.57421489]
[1726000205741,4.48835211,2391.0,2390.4,2.49055881]
[1726000206191,4.48835211,2391.0,2390.4,2.5742149]
[1726000206389,4.48835211,2391.0,2390.4,2.49055881]
[1726000206821,4.48835211,2391.0,2390.2,1.40832485]
[1726000207128,4.48835211,2391.0,2390.3,0.93786367]
[1726000207491,4.48835211,2391.0,2390.1,4.24734628]
[1726000207721,4.48835211,2391.0,2390.2,0.93777676]
[1726000208029,4.48835211,2391.0,2390.3,1.53994518]
[1726000208333,0.55,2391.0,2390.4,1.9693]
[1726000208641,0.55,2391.0,2390.5,0.08365613]
[1726000209820,0.55,2391.0,2390.4,2.05295612]
[1726000210132,0.55,2391.0,2390.5,0.25714684]
[1726000211927,2.55,2391.0,2390.5,0.25714684]
[1726000212251,2.0,2391.0,2390.6,0.08365514]
[1726000212392,2.0,2391.0,2390.7,1.9693]
[1726000212723,2.0,2391.0,2390.8,0.38268506]
[1726000213145,2.0,2391.0,2390.8,0.2990437]
[1726000218598,2.0,2391.0,2390.7,0.08364137]
[1726000219226,2.0,2391.0,2390.4,2.84055077]
[1726000219427,2.0,2391.0,2390.4,1.40749907]
[1726000219737,2.0,2391.0,2390.5,0.93887879]
[1726000219928,2.0,2391.0,2390.6,2.20393779]
[1726000221049,2.0,2391.0,2390.6,3.69616492]
[1726000221252,2.0,2391.0,2390.6,2.28759417]
[1726000221458,2.0,2391.0,2390.7,0.93925285]
[1726000221614,2.0,2391.0,2390.6,3.6962028]
[1726000221816,2.0,2391.0,2390.7,0.45674536]
[1726000223431,2.0,2391.0,2390.5,0.08365087]
[1726000223632,2.0,2391.0,2390.6,2.34873002]
[1726000223833,2.0,2391.0,2390.6,1.40924782]
[1726000224032,2.0,2391.0,2390.5,0.08365087]
[1726000224224,2.0,2391.0,2390.6,0.93950949]
[1726000224456,2.0,2391.0,2390.5,0.08365087]
[1726000225012,2.0,2391.0,2390.5,1.49316571]
[1726000225445,2.0,2391.0,2390.6,1.9693]
[1726000225645,2.0,2391.0,2390.9,4.65783383]
[1726000225854,2.0,2391.0,2390.9,6.20136376]
[1726000226072,2.0,2391.0,2390.9,6.28995515]
[1726000226660,2.0,2391.0,2390.9,1.95398196]
[1726000226821,2.0,2391.0,2390.7,0.08364353]
[1726000227020,2.0,2391.0,2390.8,0.94124725]
[1726000227257,2.0,2391.0,2390.8,1.41164365]
[1726000227718,2.0,2391.0,2390.8,0.08364747]
[1726000228660,2.0,2391.0,2390.8,1.49536098]
[1726000228910,2.0,2391.0,2390.8,2.05913227]
[1726000230668,2.0,2391.0,2390.8,1.9754848]
[1726000230869,2.0,2391.0,2390.8,2.05825775]
[1726000231401,2.0,2391.0,2390.8,2.0578637]
[1726000231706,2.0,2391.0,2390.9,0.94025458]
[1726000231904,2.0,2391.0,2390.9,1.38357676]
[1726000232106,2.0,2391.0,2390.9,2.79391645]
[1726000232621,2.0,2391.0,2390.9,1.38357676]
[1726000232823,2.0,2391.0,2390.9,2.35046987]
[1726000233129,2.0,2391.0,2390.9,4.31976987]
[1726000233427,2.0,2391.0,2390.9,2.90955458]
[1726000233781,2.0,2391.0,2390.9,0.94025458]
[1726000233985,2.0,2391.0,2390.9,2.35051547]
[1726000234219,2.0,2391.0,2390.9,1.58959093]
[1726000236089,2.0,2391.0,2390.9,0.64933635]
[1726000236492,2.0,2391.0,2390.9,0.94019706]
[1726000236802,2.0,2391.0,2390.9,0.93970232]
[1726000237200,2.0,2391.0,2390.8,1.493201]
[1726000237932,2.0,2391.0,2390.7,1.40955539]
[1726000238086,2.0,2391.0,2390.5,1.40976971]
[1726000238087,0.55,2390.9,2390.5,1.40976971]
[1726000238287,0.55,2390.9,2390.4,0.08366057]
[1726000238607,0.55,2390.9,2390.4,1.58744201]
[1726000238812,0.55,2390.9,2390.4,0.6472884]
[1726000239001,4.2607,2391.0,2390.5,0.9400066]
[1726000239197,2.0,2391.0,2390.6,0.0836518]
[1726000239788,2.0,2391.0,2390.6,2.34631527]
[1726000239992,2.0,2391.0,2390.6,3.7563033]
[1726000240192,2.0,2391.0,2390.6,2.34631527]
[1726000241235,0.55,2390.9,2390.4,1.52347422]
[1726000241409,2.0,2391.0,2390.5,2.34994218]
[1726000241742,2.0,2391.0,2390.6,4.40291073]
[1726000241910,2.0,2391.0,2390.6,3.46291332]
[1726000242109,2.0,2391.0,2390.7,0.4339114]
[1726000243334,2.0,2391.0,2390.8,0.08364801]
[1726000244735,2.0,2391.0,2390.8,0.08364307]
[1726000245047,2.0,2391.0,2390.8,1.02311061]
[1726000245204,2.0,2391.0,2390.8,0.08364307]
[1726000245405,2.0,2391.0,2390.8,0.56086871]
[1726000245604,2.0,2391.0,2390.8,1.96976548]
[1726000245905,2.0,2391.0,2390.8,0.56086871]
[1726000247674,2.0,2391.0,2390.8,1.49968285]
[1726000247872,2.0,2391.0,2390.8,0.56086871]
[1726000253375,2.0,2391.0,2390.8,1.96947981]
[1726000253542,2.0,2391.0,2390.9,0.71968652]
[1726000253898,2.0,2391.0,2390.9,1.65875413]
[1726000254190,2.0,2391.0,2390.9,1.65879123]
[1726000254678,2.0,2391.0,2390.9,0.71968652]
[1726000254883,2.0,2391.0,2390.9,1.65879072]
[1726000255286,2.0,2391.0,2390.9,0.71968652]
[1726000255451,2.0,2391.0,2390.9,1.65887669]
[1726000256191,2.0,2391.0,2390.9,1.6588346]
[1726000256992,2.0,2391.0,2390.9,1.65893262]
[1726000259527,2.0,2391.0,2390.9,3.06752067]
[1726000259900,2.0,2391.0,2390.9,2.63240219]
[1726000260088,2.0,2391.0,2390.9,3.06736327]
[1726000260526,2.0,2391.0,2390.9,1.65877522]
[1726000260728,2.0,2391.0,2390.9,1.65867288]
[1726000261022,2.0,2391.0,2390.9,3.06737814]
[1726000262388,2.0,2391.0,2390.9,3.06735183]
[1726000263201,2.0,2391.0,2390.9,1.65864657]
[1726000263428,2.0,2391.0,2390.9,3.06729613]
[1726000263828,2.0,2391.0,2390.9,2.63236136]
[1726000264125,2.0,2391.0,2390.9,3.06728598]
[1726000264991,2.0,2391.0,2390.9,3.06725953]
[1726000265724,2.0,2391.0,2390.9,2.63233491]
[1726000265932,2.0,2391.0,2390.9,3.06731361]
[1726000269361,2.0,2391.0,2390.9,3.76348128]
[1726000269797,2.0,2391.0,2390.9,3.76538297]
[1726000271257,2.0,2391.0,2390.9,7.03203039]
[1726000271526,1.12714382,2391.0,2390.9,13.315429]
[1726000271724,7.49,2391.5,2391.0,1.9693]
[1726000271937,0.026303,2391.7,2391.4,2.69210982]
[1726000272145,0.026303,2391.7,2391.5,4.43905556]
[1726000272443,0.026303,2391.7,2391.6,1.37143369]
[1726000272741,0.026303,2391.7,2391.6,1.85572418]
[1726000273304,0.026303,2391.7,2391.6,0.91926919]
[1726000274349,0.026303,2391.7,2391.6,0.48429049]
[1726000276029,0.108303,2391.7,2391.6,0.48429049]
[1726000278589,0.108303,2391.7,2391.6,4.27087355]
[1726000278884,0.108303,2391.7,2391.6,10.03695436]
[1726000279099,0.108303,2391.7,2391.6,11.78660788]
[1726000279321,0.026303,2392.2,2391.7,1.9693]
[1726000279597,0.026303,2392.2,2392.1,1.81728306]
[1726000279783,0.026303,2392.2,2392.1,1.90087055]
[1726000283993,0.026303,2392.2,2392.1,0.08358749]
[1726000285385,0.026303,2392.2,2392.1,1.90087055]
[1726000285706,0.026303,2392.2,2392.1,4.36025761]
[1726000285871,0.026303,2392.2,2392.1,6.87017055]
[1726000292241,0.026303,2392.2,2391.5,2.84098185]
[1726000292402,2.4989,2392.1,2391.5,1.9693]
[1726000292603,2.4989,2392.1,2391.6,0.93493]
[1726000293330,2.4989,2392.1,2391.7,0.08360612]
[1726000296153,0.026303,2392.2,2391.7,0.08360612]
[1726000297766,0.026303,2392.2,2391.6,0.93493]
[1726000298228,0.026303,2392.2,2391.7,0.393493]
[1726000298433,2.3981,2392.1,2391.1,1.9693]
[1726000298668,2.3981,2392.1,2391.1,3.78658306]
[1726000299462,2.3981,2392.1,2391.2,0.08361328]
[1726000299665,2.3981,2392.1,2391.2,0.65378644]
[1726000299846,2.3981,2392.1,2391.3,0.08361328]
[1726000304382,9.88358606,2392.2,2391.3,0.08361347]
[1726000304383,2.4013,2391.9,2391.3,0.08361347]
[1726000308411,2.4013,2391.9,2391.3,1.90089653]
[1726000308625,2.4013,2391.9,2391.4,0.54710697]
[1726000308816,2.4013,2391.9,2391.5,0.08361203]
[1726000310845,7.516303,2392.2,2391.5,0.08361203]
[1726000310986,2.4426,2392.1,2391.5,0.08361203]
[1726000311786,2.4426,2392.1,2391.5,3.87019509]
[1726000311991,2.4426,2392.1,2391.6,0.74173021]
[1726000312221,2.4426,2392.1,2391.7,0.08360338]
[1726000314041,2.4426,2392.1,2391.6,0.74173021]
[1726000314210,2.4426,2392.1,2391.7,0.08360345]
[1726000315130,2.4426,2392.1,2391.5,0.08360813]
[1726000317617,2.4426,2392.1,2391.4,0.54710697]
[1726000317815,2.4426,2392.1,2391.5,0.62360719]
[1726000318130,2.4426,2392.1,2391.6,0.0836094]
[1726000320429,2.4426,2392.1,2391.6,2.0529094]
[1726000320652,0.026303,2392.2,2391.7,2.75194189]
[1726000320806,0.026303,2392.2,2391.8,0.08359613]
[1726000321010,2.3588,2392.1,2391.8,0.08359613]
[1726000321855,2.3588,2392.1,2391.6,0.08360821]
[1726000322152,2.3588,2392.1,2391.6,0.50067963]
[1726000324178,0.026303,2392.2,2391.6,2.46997963]
[1726000324353,0.026303,2392.2,2391.7,0.93452558]
[1726000324545,0.026303,2392.2,2391.8,0.08360026]
[1726000324733,0.026303,2392.2,2391.8,0.73241081]
[1726000325882,0.026303,2392.7,2392.1,1.81728306]
[1726000326039,0.026303,2392.7,2392.6,1.81728306]
[1726000326379,0.026303,2393.1,2392.6,1.81728306]
[1726000326380,0.026303,2393.1,2392.6,9.60697209]
[1726000326621,0.026303,2393.1,2392.9,1.81728306]
[1726000326781,0.026303,2393.1,2393.0,0.08355758]
[1726000326991,0.026303,2393.1,2392.7,4.81728306]
[1726000327188,2.3862,2393.0,2392.3,0.87061344]
[1726000327475,2.3862,2393.0,2392.4,2.29375323]
[1726000327661,2.3862,2393.0,2392.4,1.90086602]
[1726000328283,2.3862,2393.0,2392.4,0.08358296]
[1726000329549,2.3862,2393.0,2392.1,3.0]
[1726000329550,2.3862,2393.0,2392.2,0.08358308]
[1726000330456,2.3862,2393.0,2392.2,3.08358308]
[1726000330658,2.3862,2393.0,2392.3,0.78490658]
[1726000331067,2.3862,2393.0,2392.3,4.71455897]
[1726000331441,2.3862,2393.0,2392.3,0.70132355]
[1726000331669,2.3862,2393.0,2392.4,0.08357544]
[1726000334876,2.3862,2393.0,2392.4,2.05287544]
[1726000335194,0.026303,2393.1,2392.7,3.92965239]
[1726000335388,0.026303,2393.1,2392.8,0.08356209]
[1726000335699,0.026303,2393.1,2392.5,4.59803753]
[1726000335700,0.026303,2393.1,2392.6,3.0]
[1726000336000,0.026303,2393.1,2392.7,0.0835636]
[1726000336001,2.3504,2393.0,2392.7,0.0835636]
[1726000336169,2.3504,2393.0,2392.5,0.0835636]
[1726000336376,2.3504,2393.0,2391.9,2.83991344]
[1726000336581,2.3504,2393.0,2392.0,1.74098548]
[1726000336784,2.3504,2393.0,2392.0,0.80770886]
[1726000337581,2.3504,2393.0,2392.1,0.08358311]
[1726000337988,2.3504,2393.0,2392.1,1.88727181]
[1726000338191,2.3504,2393.0,2392.2,0.93307526]
[1726000338370,2.3504,2393.0,2392.3,0.57230204]
[1726000338896,2.3504,2393.0,2392.3,2.54160204]
[1726000341622,0.026303,2393.1,2392.5,3.92965239]
[1726000341838,0.026303,2393.1,2392.6,0.08356549]
[1726000342586,2.4574,2393.0,2392.6,0.08356549]
[1726000350914,0.026303,2393.1,2392.4,4.01322621]
[1726000351363,0.026303,2393.1,2392.4,0.08357382]
[1726000351567,0.026303,2393.1,2392.4,0.68182644]
[1726000352824,0.026303,2393.1,2392.4,4.61147883]
[1726000353530,0.026303,2393.1,2392.6,3.92965239]
[1726000353738,0.026303,2393.1,2392.7,0.08356517]
[1726000355018,0.026303,2393.1,2392.7,0.68181693]
[1726000355218,0.026303,2393.1,2392.8,0.08356216]
[1726000356143,0.026303,2393.1,2392.6,0.08356218]
[1726000364456,0.026303,2393.1,2392.6,3.08356218]
[1726000364679,0.026303,2393.1,2392.7,0.59234756]
[1726000364863,0.026303,2393.1,2392.8,0.08356239]
[1726000367157,2.3208,2393.0,2392.8,0.08356239]
[1726000368653,0.026303,2393.1,2392.8,0.08356239]
[1726000371284,0.026303,2393.1,2392.9,0.93458388]
[1726000371451,0.026303,2393.1,2393.0,0.32557922]
[1726000372790,0.026303,2393.1,2393.0,1.260792]
[1726000373165,0.026303,2393.1,2393.0,0.32557922]
[1726000380481,0.026303,2393.1,2393.0,1.26073273]
[1726000380700,0.026303,2393.1,2393.0,0.32557922]
[1726000382477,0.026303,2393.1,2393.0,0.08356259]
[1726000383375,0.026303,2393.1,2392.8,2.35687851]
[1726000383612,0.026303,2393.1,2392.9,0.93510676]
[1726000383775,0.026303,2393.1,2393.0,0.08356287]
[1726000385517,0.026303,2393.1,2393.0,1.01857372]
[1726000385725,0.026303,2393.1,2393.0,1.38883179]
[1726000386013,0.026303,2393.1,2393.0,0.45382094]
[1726000386175,0.026303,2393.1,2393.0,2.79122674]
[1726000387118,0.026303,2393.1,2393.0,1.38875593]
[1726000388977,0.026303,2393.1,2393.0,2.79090913]
[1726000389184,0.026303,2393.1,2393.0,2.79096677]
[1726000389811,0.026303,2393.1,2393.0,2.79095104]
[1726000390474,0.026303,2393.1,2393.0,1.38867298]
[1726000390881,0.026303,2393.1,2393.0,2.79049045]
[1726000392482,0.026303,2393.1,2393.0,2.42023238]
[1726000392722,0.026303,2393.1,2393.0,2.42077507]
[1726000394028,0.026303,2393.1,2392.6,0.87061344]
[1726000394029,4.28559653,2393.1,2392.6,0.87061344]
[1726000394314,2.472203,2393.1,2392.7,2.4217866]
[1726000394531,2.472203,2393.1,2392.8,0.93528375]
[1726000394835,2.472203,2393.1,2392.7,0.08357723]
[1726000395182,2.472203,2393.1,2392.8,2.33849818]
[1726000395382,2.472203,2393.1,2392.8,0.08357498]
[1726000396820,2.472203,2393.1,2392.9,0.93531621]
[1726000396999,2.472203,2393.1,2392.8,0.08357498]
[1726000398626,2.472203,2393.1,2392.9,0.9350793]
[1726000398830,2.472203,2393.1,2392.8,0.08357498]
[1726000401511,2.472203,2393.1,2392.7,0.95418679]
[1726000401831,2.472203,2393.1,2392.8,2.42065728]
[1726000402013,2.472203,2393.1,2392.8,0.08357335]
[1726000402742,2.472203,2393.1,2392.7,1.48616975]
[1726000403034,1.81339353,2392.8,2392.6,0.08357848]
[1726000403232,1.81339353,2392.8,2392.5,0.87061344]
[1726000403233,2.3974,2392.7,2392.5,0.87061344]
[1726000403392,2.3974,2392.7,2392.3,2.27259843]
[1726000403593,2.3974,2392.7,2392.4,2.42028335]
[1726000403833,2.3974,2392.7,2392.5,0.9347221]
[1726000404031,2.3974,2392.7,2392.4,0.08358675]
[1726000404335,2.3974,2392.7,2392.4,1.48529121]
[1726000404636,2.3974,2392.7,2392.5,0.93446927]
[1726000404826,2.3974,2392.7,2392.5,1.40169355]
[1726000405135,2.3974,2392.7,2392.4,0.08358675]
[1726000405433,2.3974,2392.7,2392.5,0.93433429]
[1726000405597,2.3974,2392.7,2392.4,1.48508986]
[1726000406033,2.3974,2392.7,2392.5,0.93432335]
[1726000406219,2.3974,2392.7,2392.4,0.08358675]
[1726000406426,2.3974,2392.7,2392.3,1.48499172]
[1726000406613,2.3974,2392.7,2392.4,0.93430949]
[1726000406809,2.3974,2392.7,2392.4,1.40157138]
[1726000407024,2.3974,2392.7,2392.4,1.40160709]
[1726000407211,2.3974,2392.7,2392.3,0.49001498]
[1726000407406,2.3974,2392.7,2392.4,0.93427413]
[1726000407816,2.3974,2392.7,2392.4,1.48497436]
[1726000408119,2.3974,2392.7,2392.5,0.93422526]
[1726000408319,2.3974,2392.7,2392.4,1.48497436]
[1726000408701,2.4864,2393.0,2392.4,1.89192821]
[1726000408898,2.4864,2393.0,2392.5,0.93421927]
[1726000409096,2.4864,2393.0,2392.5,1.36836239]
[1726000409300,2.4864,2393.0,2392.5,0.43414312]
[1726000409714,2.4864,2393.0,2392.5,0.4341532]
[1726000410018,2.4864,2393.0,2392.5,0.43411869]
[1726000410633,2.4864,2393.0,2392.4,0.0835871]
[1726000412464,4.29979353,2393.0,2392.4,0.0835871]
[1726000412645,2.2572,2392.9,2392.4,0.0835871]
[1726000416369,2.2572,2392.9,2392.3,1.40082008]
[1726000416662,0.026303,2393.1,2392.9,1.9693]
[1726000416823,0.026303,2393.1,2393.0,1.01477814]
[1726000417171,0.026303,2393.1,2393.0,0.08356653]
[1726000417674,0.026303,2393.1,2393.0,1.01648965]
[1726000417826,0.026303,2393.1,2393.0,1.54217119]
[1726000419325,0.026303,2393.1,2393.0,1.54158565]
[1726000422469,0.026303,2393.1,2393.0,1.45801912]
[1726000422765,0.026303,2393.1,2392.8,0.08356161]
[1726000422975,0.026303,2393.1,2392.9,1.016379]
[1726000423174,0.026303,2393.1,2392.9,0.0835727]
[1726000426139,0.026303,2393.1,2393.0,0.932876]
[1726000426340,0.026303,2393.1,2393.0,1.42155054]
[1726000430332,0.026303,2393.1,2393.0,0.48866544]
[1726000432731,0.026303,2393.1,2393.0,1.42171973]
[1726000437445,0.026303,2393.1,2393.0,8.15818089]